Cogmind - Beta 16 *** ADVENTURER MODE // 2025.11.01 @ 23:07:27 Player: Joe Result: Destroyed by 7W-F1A(R) with Subdweller Beam Cannon Performance ------------- Evolutions (0) 0 Regions Visited (3) 600 Robots Destroyed (19) 95 Value Destroyed (489) 489 Prototype IDs (3) 60 Alien Tech Used (0) 0 Bonus (0) 0 TOTAL SCORE: 1244 Bonus ------- None Cogmind --------- Core Integrity 0/250 Matter 233/300 Energy 250/250 System Corruption 0% Temperature Cool (9) Movement Treading (320) Ox2 Location -10/Subcaves Parts ------- > --- POWER (1) -------- Ion Engine > --- PROPULSION (2) --- Light Treads > --- UTILITY (2) ------ High-capacity Storage Unit Light Armor Plating > --- WEAPON (2) ------- Small Laser Beam Cannon > --- INVENTORY (20) --- Ion Engine Light Ion Engine Light Ion Engine Heat Sink Heat Sink Small Storage Unit Sensor Array Terrain Scanner Welding Torch Peak State ------------ > --- POWER ------------ Ion Engine > --- PROPULSION ------- Light Treads Light Treads > --- UTILITY ---------- Heat Sink High-capacity Storage Unit > --- WEAPON ----------- Particle Gun Light Assault Rifle > --- INVENTORY -------- Ion Engine Light Ion Engine Light Ion Engine Light Ion Engine Aluminum Leg Heat Sink Small Laser Beam Cannon Grenade Launcher Mining Laser [Rating: 9] Favorites ----------- Power Ion Engine Engine Ion Engine Propulsion Light Treads Treads Light Treads Leg Aluminum Leg Utility High-capacity Storage Unit Device Heat Sink Storage High-capacity Storage Unit Protection Light Armor Plating Weapon Light Assault Rifle Energy Gun Small Laser Energy Cannon Beam Cannon Ballistic Gun Light Assault Rifle Launcher Grenade Launcher Special Weapon Mining Laser Build | -11 -10 -10 -10 ------- Run | Yrd Mat Min Sub Slots Evolved . | . . . . Power . | . . . . Propulsion . | . . . . Utility . | . . . . Weapon . | . . . . Parts Attached 22 | 7 4 7 4 Power 5 | 2 . 2 1 Engine 5 | 2 . 2 1 Core . | . . . . Reactor . | . . . . Propulsion 4 | 2 1 1 . Treads 3 | 2 . 1 . Leg 1 | . 1 . . Wheel . | . . . . Hover . | . . . . Flight . | . . . . Utility 5 | 1 2 1 1 Device 2 | . 1 1 . Storage 2 | 1 1 . . Processor . | . . . . Hackware . | . . . . Protection 1 | . . . 1 Artifact . | . . . . Weapon 8 | 2 1 3 2 Energy Gun 3 | 1 1 1 . Energy Cannon 1 | . . 1 . Ballistic Gun 1 | 1 . . . Ballistic Cannon . | . . . . Launcher 1 | . . 1 . Special Weapon 2 | . . . 2 Impact Weapon . | . . . . Slashing Weapon . | . . . . Piercing Weapon . | . . . . Special Melee Weapon . | . . . . Unidentified Prototypes . | . . . . Parts Lost 10 | . 1 5 4 Power 2 | . . 1 1 Propulsion 3 | . . 2 1 Utility . | . . . . Weapon 5 | . 1 2 2 Highest Loss Streak 3 | . 1 3 2 To Critical Strikes . | . . . . Average Backups 8 | . 5 10 10 Power 3 | . 2 3 3 Propulsion . | . . . . Utility 2 | . . 3 5 Weapon 2 | . 1 2 1 Tool/Special . | . . . . Unused Backups 5 | . 1 . 4 Power 1 | . . . 1 Propulsion 1 | . 1 . . Utility 3 | . . . 3 Weapon . | . . . . Tool/Special . | . . . . Average Slot Usage (%) 94 | . 91 96 90 Engine 13 | . 14 14 13 Treads 19 | . 23 17 14 Leg 4 | . . 7 7 Device 12 | . 11 14 3 Storage 14 | . 14 14 14 Energy Gun 12 | . 12 13 . Energy Cannon 4 | . . 7 14 Ballistic Gun 7 | . 14 4 . Launcher 1 | . . 2 . Peak Build Rating 9 | 6 8 9 8 Average Rating 7 | 4 6 7 7 On Entrance 5 | . 6 8 8 Avg Prop Armor Cover (%) 7 | . . 8 7 Naked Turns . | . . . . Heaviest Build 52 | 13 50 50 52 Greatest Support 40 | 40 40 40 20 Greatest Overweight (x) 4 | . 2 4 2 Average Overweight (x) 1 | . 1 1 2 Largest Inventory Capacity 20 | 8 20 20 20 Average Capacity 19 | 6 19 20 20 Most Carried 12 | 2 10 12 12 Average Carried 8 | . 5 10 10 Final Capacity 20 | 8 20 20 20 Final Carried 12 | 2 9 12 9 Class Distribution -------------------- 100% | Mutant Dominant Class ---------------- Mutant | -10/Materials Mutant | -10/Mines Mutant | -10/Subcaves Resources | -11 -10 -10 -10 ----------- Run | Yrd Mat Min Sub Matter Collected 601 | 219 140 199 43 Remotely . | . . . . Salvage Created 430 | . 298 78 54 Parts 26 | . 13 9 4 Haulers Intercepted . | . . . . Recyclers Shooed . | . . . . Parts Field Recycled . | . . . . Retrieved Matter . | . . . . Parts Self-Destructed 3 | . . . 3 Prevented . | . . . . Parts Restored . | . . . . Kills | -11 -10 -10 -10 ------- Run | Yrd Mat Min Sub Combat Hostiles Destroyed 17 | . 7 6 4 Guns 9 | . 5 4 . Cannons 1 | . . . 1 AOE 7 | . 2 2 3 Classes Destroyed 3 | . 1 1 1 Turret 2 | . . . 2 Swarmer 7 | . . 3 4 Grunt 9 | . 7 2 . Best Kill Streak 4 | . 2 2 4 Combat Bots Only 4 | . 2 2 4 Max Kills in Single Turn 3 | . 2 1 3 Gunslinging . | . . . . Exploded 3 | . 2 1 3 Melee . | . . . . Uniques/NPCs Destroyed 1 | . . 1 . YI-UF0 (-10/Mines) Combat | -11 -10 -10 -10 -------- Run | Yrd Mat Min Sub Hostile Shots Fired 228 | . 53 35 140 Missed 82 | . 19 13 50 Hits 146 | . 34 22 90 Projectile 146 | . 34 22 90 AOE 17 | . . 17 . Critical Strikes 2 | . 1 1 . Damage Taken 1383 | . 366 417 600 Core 267 | . 73 60 134 Absorbed by Shields . | . . . . Ignored by Resistances 422 | . 109 121 192 Core Remaining (%) 100 | 100 . . . Volleys Fired 84 | . 41 18 25 Largest 2 | . 2 2 2 Hottest 100 | . 85 95 100 Shots Fired 123 | . 60 34 29 Gun 82 | . 60 21 1 Cannon 25 | . . . 25 Launcher 16 | . . 13 3 Special . | . . . . Kinetic 46 | . 41 5 . Thermal 52 | . 10 16 26 Explosive 16 | . . 13 3 Electromagnetic 9 | . 9 . . Robot Hit Streak 18 | . 18 12 15 Robot Miss Streak 2 | . 2 1 1 Penetration Max . | . . . . Secondary Targets 1 | . 1 . . Max Gunslinging Chain 1 | . 1 . . Shots Hit Robots 91 | . 41 28 22 Core Hits 36 | . 17 10 9 Critical Kills . | . . . . Critical Parts Destroyed . | . . . . Critical Strikes 1 | . . 1 . Burn 1 | . . 1 . Melee Attacks . | . . . . Impact . | . . . . Slashing . | . . . . Piercing . | . . . . Sneak Attacks . | . . . . Combat Hostiles . | . . . . Follow-up Attacks . | . . . . Damage Inflicted 1636 | . 511 557 568 Guns 642 | . 424 207 11 Cannons 330 | . . . 330 Explosions 622 | . 72 323 227 Melee . | . . . . Ramming 42 | . 15 27 . Kinetic 245 | . 229 16 . Thermal 760 | . 228 191 341 Explosive 550 | . . 323 227 Electromagnetic 39 | . 39 . . Impact . | . . . . Slashing . | . . . . Piercing . | . . . . Highest Corruption . | . . . . Average Corruption . | . . . . Corruption Purged . | . . . . Corruption Blocked . | . . . . Overload Shots . | . . . . Overflow Damage 17 | . . 8 9 Projectiles 4 | . . . 4 Explosions 13 | . . 8 5 Melee . | . . . . Knockbacks . | . . . . Impact . | . . . . Kinetic . | . . . . Secondary . | . . . . Self-Inflicted Damage 23 | . . . 23 Shots 1 | . . . 1 Rammed 6 | . 3 3 . Targets Rammed 6 | . 3 3 . Kicked . | . . . . Crushed . | . . . . Highest Temperature 73 | . 73 24 71 Average Temperature 26 | . 27 10 38 Received Heat Transfer 852 | . 285 87 480 Siege Activations . | . . . . Martial Activations . | . . . . Shielding Activations . | . . . . Robots Disrupted . | . . . . Combat Hostiles . | . . . . Robots Corrupted . | . . . . Combat Hostiles . | . . . . Parts Fried . | . . . . Impact Corruptions . | . . . . Robots Melted . | . . . . Combat Hostiles . | . . . . Parts Melted . | . . . . Heat Transferred 1656 | . 420 508 728 Parts Sabotaged . | . . . . Parts Stolen . | . . . . Parts Stripped . | . . . . Power Chain Reactions 1 | . 1 . . Alert | -11 -10 -10 -10 ------- Run | Yrd Mat Min Sub Maximum Alert Level . | . . . . Low Security (%) 100 | 100 100 100 . Level 1 . | . . . . Level 2 . | . . . . Level 3 . | . . . . Level 4 . | . . . . Level 5 . | . . . . High Security . | . . . . Max Security . | . . . . Peak Influence 65 | . 59 65 . Initial . | . . . . Average 5 | . 7 4 . Influence Increases 589 | . 211 153 225 Destroy 0b10 Robot/C 360 | . 140 100 120 Destroy Leader 70 | . 50 20 . Successful Hack 12 | . 12 . . Destroy Structure 27 | . 9 18 . Lose Combat Pursuer 120 | . . 15 105 Influence Decreases 484 | . 211 153 120 Time Decay 443 | . 211 152 80 Lost Part 41 | . . 1 40 Squads Dispatched 2 | . 2 . . Investigation 2 | . 2 . . Extermination . | . . . . Reinforcement . | . . . . Assault . | . . . . Garrison . | . . . . Intercept . | . . . . Searches Triggered . | . . . . Construction Impeded . | . . . . Haulers Reinforced . | . . . . Active Scanning Responses . | . . . . Cargo Convoy Interrupts . | . . . . Stealth | -11 -10 -10 -10 --------- Run | Yrd Mat Min Sub Distress Signals 2 | . 2 . . Communications Jammed . | . . . . Distress Signals . | . . . . Times Spotted 34 | . 17 7 10 Peak Tracking Total 7 | . 3 3 7 Tactical Retreats 5 | . . 1 4 Traps | -11 -10 -10 -10 ------- Run | Yrd Mat Min Sub Traps Triggered 2 | . 2 . . Indirectly . | . . . . Trap Hack Attempts . | . . . . Triggered . | . . . . Disarmed . | . . . . Reprogrammed . | . . . . Reused . | . . . . Traps Extracted . | . . . . Installed . | . . . . Triggered . | . . . . Machines | -11 -10 -10 -10 ---------- Run | Yrd Mat Min Sub Machines Disabled 2 | . . . 2 Max in Single Turn 1 | . . . 1 Machines Repaired . | . . . . Machines Dismantled . | . . . . Machines Sabotaged . | . . . . Overloaded Fab Kills . | . . . . Hacking | -11 -10 -10 -10 --------- Run | Yrd Mat Min Sub Machines Accessed 5 | . 5 . . Terminals 5 | . 5 . . Fabricators . | . . . . Repair Stations . | . . . . Recycling Units . | . . . . Scanalyzers . | . . . . Garrison Access . | . . . . Total Hacks 14 | . 14 . . Successful 10 | . 10 . . Failed 4 | . 4 . . Catastrophic 1 | . 1 . . Database Lockouts . | . . . . Manual . | . . . . Terminals 14 | . 14 . . Fabricators . | . . . . Repair Stations . | . . . . Recycling Units . | . . . . Scanalyzers . | . . . . Garrison Access . | . . . . Terminal Hacks 10 | . 10 . . Record 5 | . 5 . . Prototype ID Bank 1 | . 1 . . Locate Traps 2 | . 2 . . Registered Prototypes 1 | . 1 . . Zone Layout 1 | . 1 . . Fabricator Hacks . | . . . . Repair Station Hacks . | . . . . Recycling Unit Hacks . | . . . . Scanalyzer . | . . . . Garrison Access Hacks . | . . . . Unauthorized Hacks . | . . . . Terminals . | . . . . Fabricators . | . . . . Repair Stations . | . . . . Recycling Units . | . . . . Scanalyzers . | . . . . Garrison Access . | . . . . Data Cores Recovered . | . . . . Used . | . . . . Hacking Detections 4 | . 4 . . Full Trace Events 1 | . 1 . . Feedback Events . | . . . . Feedback Blocked . | . . . . Robot Schematics Acquired . | . . . . Robots Built . | . . . . Authchips . | . . . . Time . | . . . . Total Robot Build Rating . | . . . . Part Schematics Acquired . | . . . . Parts Built . | . . . . Authchips . | . . . . Time . | . . . . Total Part Build Rating . | . . . . Part Studies Acquired . | . . . . Parts Repaired . | . . . . Time . | . . . . Parts Recycled . | . . . . Recycled Matter . | . . . . Retrieved Matter . | . . . . Retrieved Components . | . . . . Parts Scanalyzed . | . . . . Part Schematics Acquired . | . . . . Parts Damaged . | . . . . Bothacking | -11 -10 -10 -10 ------------ Run | Yrd Mat Min Sub Used RIF Installer . | . . . . Robots Hacked . | . . . . Non-combat . | . . . . Combat . | . . . . Robot Hacks Applied . | . . . . Relay Couplers Released . | . . . . Fabnet Peak Effective % . | . . . . Robots Rewired . | . . . . Allies Hacked . | . . . . Hacks Repelled . | . . . . Allies | -11 -10 -10 -10 -------- Run | Yrd Mat Min Sub Total Allies . | . . . . Largest Group . | . . . . Highest-Rated Group . | . . . . Highest-Rated Ally . | . . . . Total Orders . | . . . . Ally Attacks . | . . . . Total Damage . | . . . . Kills . | . . . . Allies Corrupted . | . . . . Allies Melted . | . . . . Intel | -11 -10 -10 -10 ------- Run | Yrd Mat Min Sub Active Infowar (turns) . | . . . . Robot Analysis Total . | . . . . Derelict Logs Recovered . | . . . . Drone Launches . | . . . . Drone Recoveries . | . . . . Exploration | -11 -10 -10 -10 ------------- Run | Yrd Mat Min Sub Turns Passed 3387 | 77 1257 1877 176 Spaces Moved 1143 | 41 454 614 34 Core 3 | 3 . . . Treads 1125 | 38 454 599 34 Legs 15 | . . 15 . Wheels . | . . . . Hover . | . . . . Flight . | . . . . Fastest Speed 50 | 50 160 240 320 Average Speed 272 | 151 250 293 320 Slowest Speed 400 | 160 320 400 320 Overloaded Moves . | . . . . Propulsion Burnouts . | . . . . Robots Hopped . | . . . . Potential Cave-ins 3 | . . 3 . Cave-ins Triggered . | . . . . Exploration Rate (%) 42 | 4 63 100 2 Regions Visited 3 Branch Regions 2 Pre-discovered Areas . | . . . . Known Exits Taken . | . . . . Unknown Exits Taken 3 | 1 1 1 . Scrap Searched 2 | . . 2 . Spaces Dug . | . . . . Terrain Destroyed 61 | . 7 36 18 Melee . | . . . . Projectile . | . . . . AOE 61 | . 7 36 18 Terrain Rammed . | . . . . Walls Destroyed . | . . . . Machines Disabled . | . . . . Actions | -11 -10 -10 -10 --------- Run | Yrd Mat Min Sub Total 1294 | 55 520 650 69 Wait 2 | . 2 . . Move 1140 | 40 453 613 34 Hop . | . . . . Pick Up 28 | 8 12 8 . Fast Attach . | . . . . Attach 18 | 6 4 5 3 Detach 1 | . 1 . . Swap 13 | 1 2 3 7 Drop 2 | . 2 . . Fire 84 | . 41 18 25 Melee . | . . . . Ram . | . . . . Kick . | . . . . Crush 6 | . 3 3 . Escape Stasis . | . . . . Rewire . | . . . . Trap . | . . . . Miscellaneous . | . . . . Route ------- -11/Scrapyard -10/Materials (discovered 3 exits: [*Mat] / [*Min] / [*Sub]) -10/Mines (discovered 3 exits: [*Mat x2] / [*Sub]) -10/Subcaves (discovered 1 exit: [*Rec]) History --------- Turn | Location | Event 46 | -11/Scrapyard | Discovered new exit (range 16) 78 | -11/Scrapyard | Entered Materials 300 | -10/Materials | Build established: Mutant 693 | -10/Materials | Discovered new exit (range 16) 967 | -10/Materials | Discovered new exit (range 8) 1286 | -10/Materials | Discovered new exit (range 9) 1335 | -10/Materials | Entered Mines 1551 | -10/Mines | Discovered new exit (range 12) 1677 | -10/Mines | Discovered new exit (range 6) 1715 | -10/Mines | Discovered new exit (range 10) 1897 | -10/Mines | Destroyed YI-UF0 1920 | -10/Mines | Lost 3 parts (1n2w) 2218 | -10/Mines | Core integrity fell below 50% 3212 | -10/Mines | Entered Subcaves 3223 | -10/Subcaves | Discovered new exit (range 16) 3274 | -10/Subcaves | Core integrity fell below 20% 3388 | -10/Subcaves | Destroyed by 7W-F1A(R) with Subdweller Beam Cannon Last Messages --------------- repair. 03223_ EXIT=FOUND 03223_ S-10 Pest destroyed. 03226_ Grenade Launcher destroyed. 03229_ Lgt. Assault Rifle fries itself beyond repair. 03231_ The unstable cave ceiling collapses. 03269_ Machine disabled. 03283_ Destroyed Autobeam. 03285_ The unstable cave ceiling collapses. 03285_ Autobeam Turret destroyed. 03290_ The unstable cave ceiling collapses. 03297_ Aluminum Leg destroyed. 03299_ Lgt. Ion Engine destroyed. 03301_ Autobeam Turret destroyed. 03302_ The unstable cave ceiling collapses. 03312_ Acquired 7 matter. 03321_ Acquired 22 matter. 03324_ Acquired 14 matter. 03379_ Mining Laser destroyed. Map ----- +----------------------------------------------------+ | ?????????????????????????????????????????????????? | | ?????????????????????????????????????????????????? | | ?????????????????????????????????????????????????? | | ?????????????????????????????????????????????????? | | ?????????????????????????????????????????????????? | | ?????????????????????????????????????????????????? | | ?????????????????????????????????????????????????? | | ?????????????????????????????????????????????????? | | ?????????????????????????????????????????????????? | | ?????????????????????????????????????????????????? | | ?????????????????????????????????????????????????? | | ?????????????????????????????????????????????????? | | ?????????????????????????????????????????????????? | | ?????????????????????????????????????????????????? | | ?????????????????????????????????????????????????? | | ?????????????????????????????????????????????????? | | ?????????????????????????????????????????????????? | | ?????????????????###?????????????????????????????? | | ????????????????## #?????????????????????????????? | | ????????????????# ###???????????????????????????? | | ????????????????# ###???########??????????????? | | ????????????????# #####" """#??????????????? | | ????????????????## # #??????????????? | | ?????????????????# # ## #??????????????? | | ?????????????????# ""##?????????????? | | ????????????????## R @ <#?????????????? | | ????????????????# R ""##?????????????? | | ????????????????# ## # # #??????????????? | | ????????????????## ## # "#??????????????? | | ?????????????????## ######" """#??????????????? | | ??????????????????# #????########??????????????? | | ??????????????????# " #??????????????????????????? | | ??????????????????## " ??????????????????????????? | | ???????????????????## "??????????????????????????? | | ???????????????????? ?????????????????????????? | | ???????????????????? " ?????????????????????????? | | ???????????????????? "??????????????????????????? | | ???????????????????? "??????????????????????????? | | ???????????????????? ???????????????????????????? | | ???????????????????? "???????????????????????????? | | ???????????????????? ????????????????????????????? | | ?????????????????????????????????????????????????? | | ?????????????????????????????????????????????????? | | ?????????????????????????????????????????????????? | | ?????????????????????????????????????????????????? | | ?????????????????????????????????????????????????? | | ?????????????????????????????????????????????????? | | ?????????????????????????????????????????????????? | | ?????????????????????????????????????????????????? | | ?????????????????????????????????????????????????? | +----------------------------------------------------+ Best States ------------- Heat Dissipation 35 Energy Generation 10 Energy Capacity 250 Matter Stores 300 Matter Capacity 300 Sight Range 16 Terrain Scan Density 10 Armor Coverage 150 Resistance: KI 20 Resistance: TH 20 Resistance: EX 20 Resistance: EM 20 Resistance: I 20 Resistance: S 20 Resistance: P 20 Evasion (%) 40 Recoil Reduction 2 Offensive Hacking 10 Item Schematics ----------------- None Robot Schematics ------------------ None Fabricated ------------ Nothing Repaired ---------- Nothing Studied --------- None Alien Tech Used ----------------- None Achievements -------------- DATA ERROR: Steam Global Achievement% For Emergencies Only There's More Where That Came From Challenges ------------ None Game ------ Seed LargeProcessingKatana Manual? 0 Play Time 00:13:02 Cumulative 241.6 hours Start 2025.11.01 @ 22:55:28 End 2025.11.01 @ 23:07:27 Sessions 1 Manual Loads 0 Difficulty Adventurer Special Mode None Game No. 64 Rogue 0 Adventurer 64 Explorer 0 Win Type - Total 1 Types 0/0/0/1/0/0/0/0/0/0 Lore% 48 Gallery% 53 Achievement% 30 Wizard Run 0 Options --------- Layout 1 ASCII 0 Keyboard 0 Movement Numpad Keybinds 0 Fullscreen 1 Font 24/Smallcaps Map View 50x35 Zoom Use 0% Tactical HUD 1 Map Filters NONE Filters NONE Steam 0 RUN: a5579b87-4dce-4c33-9e3b-c6ea7b4e1f55